Cogmind - Beta 12 @@@ ROGUE MODE // 2023.05.21 @ 18:27:27 Player: Inkie Result: Destroyed by G-47 Trooper with Particle Gun Performance ------------- Evolutions (2) 1000 Regions Visited (8) 1600 Robots Destroyed (71) 355 Value Destroyed (3448) 3448 Prototype IDs (3) 60 Alien Tech Used (0) 0 Bonus (677) 677 TOTAL SCORE: 7140 Bonus ------- High Alert Combat Kills 288 Follower Combat Kills 35 Entered Garrisons 400 Friendly Fire -46 Cogmind --------- Core Integrity 0/550 Matter 89/300 Energy 47/290 System Corruption 0% Temperature Hot (201) Movement Core (1100) Ox21 Location -8/Garrison Parts ------- > --- POWER (1) -------- Reinforced Deuterium Engine > --- PROPULSION (2) --- (None) > --- UTILITY (6) ------ Heat Sink High-capacity Storage Unit Advanced Targeting Computer Hacking Suite Hacking Suite > --- WEAPON (2) ------- Gatling Laser Gatling Laser > --- INVENTORY (20) --- Reinforced Deuterium Engine Armored Treads Advanced Treads Improved VTOL Module Improved VTOL Module Improved VTOL Module Improved VTOL Module Improved VTOL Module Improved VTOL Module High-capacity Matter Pod (200) Advanced ECM Suite Hacking Suite Long-range Tractor Beam Improved Assault Rifle Improved Assault Rifle Missile Launcher Peak State ------------ > --- POWER ------------ Reinforced Deuterium Engine > --- PROPULSION ------- Advanced Treads Advanced Treads > --- UTILITY ---------- Advanced Heat Sink High-capacity Storage Unit Advanced Targeting Computer Improved Utility Shielding Hacking Suite Hacking Suite > --- WEAPON ----------- Gatling Laser Gatling Laser > --- INVENTORY -------- Reinforced Deuterium Engine Reinforced Deuterium Engine Armored Treads Advanced Treads Improved VTOL Module Improved VTOL Module Improved VTOL Module Improved VTOL Module Improved VTOL Module Improved VTOL Module High-capacity Matter Pod Advanced ECM Suite Hacking Suite Long-range Tractor Beam Gatling Laser Improved Assault Rifle Improved Assault Rifle Missile Launcher [Rating: 42] Favorites ----------- Power Reinforced Deuterium Engine Engine Reinforced Deuterium Engine Power Core Light Nuclear Core Propulsion Light Treads Treads Light Treads Flight Unit Improved VTOL Module Utility Hacking Suite Device Advanced Heat Sink Storage High-capacity Storage Unit Processor Advanced Targeting Computer Hackware Hacking Suite Protection Improved Utility Shielding Weapon Assault Rifle Energy Gun Gatling Laser Ballistic Gun Assault Rifle Launcher Missile Launcher Build | -11 -10 -10 -10 -9 -8 -8 -8 -8 ------- Run | Jun Mat Min Exi Min Mat Gar Mat Gar Slots Evolved 4 | . . . . . 4 . . . Power . | . . . . . . . . . Propulsion . | . . . . . . . . . Utility 4 | . . . . . 4 . . . Weapon . | . . . . . . . . . Parts Attached 80 | 7 4 . . 4 39 15 5 6 Power 10 | 2 . . . 1 5 1 . 1 Engine 7 | 2 . . . . 4 . . 1 Core 3 | . . . . 1 1 1 . . Reactor . | . . . . . . . . . Propulsion 13 | 2 1 . . 1 7 . 2 . Treads 12 | 2 1 . . 1 6 . 2 . Leg . | . . . . . . . . . Wheel . | . . . . . . . . . Hover . | . . . . . . . . . Flight 1 | . . . . . 1 . . . Utility 13 | 1 1 . . 1 9 . 1 . Device 4 | . . . . 1 2 . 1 . Storage 3 | 1 1 . . . 1 . . . Processor 1 | . . . . . 1 . . . Hackware 2 | . . . . . 2 . . . Protection 3 | . . . . . 3 . . . Artifact . | . . . . . . . . . Weapon 44 | 2 2 . . 1 18 14 2 5 Energy Gun 18 | . 1 . . 1 9 4 . 3 Energy Cannon . | . . . . . . . . . Ballistic Gun 19 | 2 1 . . . 7 6 2 1 Ballistic Cannon . | . . . . . . . . . Launcher 7 | . . . . . 2 4 . 1 Special Weapon . | . . . . . . . . . Impact Weapon . | . . . . . . . . . Slashing Weapon . | . . . . . . . . . Piercing Weapon . | . . . . . . . . . Special Melee Weapon . | . . . . . . . . . Unidentified Prototypes 3 | . . . . . 3 . . . Parts Lost 12 | . . . . . 6 1 . 5 Power 1 | . . . . . . . . 1 Propulsion 3 | . . . . . 1 . . 2 Utility 5 | . . . . . 3 1 . 1 Weapon 3 | . . . . . 2 . . 1 Highest Loss Streak 5 | . . . . . 2 1 . 5 To Critical Strikes . | . . . . . . . . . Average Slot Usage (%) 87 | . 85 85 85 93 82 94 92 98 Engine 9 | . 14 14 14 6 8 8 . . Core 1 | . . . . 7 . . 9 8 Treads 20 | . 28 28 28 28 17 18 17 17 Device 7 | . . . . 7 14 3 2 9 Storage 10 | . 14 14 14 14 9 9 9 9 Processor 4 | . . . . . 4 9 9 9 Hackware 6 | . . . . . 4 18 18 18 Protection 4 | . . . . . 5 9 9 8 Energy Gun 7 | . 1 14 14 14 8 6 6 4 Ballistic Gun 12 | . 26 14 14 14 9 7 12 10 Naked Turns . | . . . . . . . . . Heaviest Build 68 | 14 30 29 29 31 68 68 55 57 Greatest Support 44 | 40 40 40 40 40 44 44 44 40 Greatest Overweight (x) 2 | 1 . . . . 2 1 1 1 Average Overweight (x) . | . . . . . . 1 1 1 Largest Inventory Capacity 20 | 8 15 15 15 15 20 20 20 20 Average Capacity 16 | 6 9 15 15 15 18 20 20 20 Most Carried 20 | 2 10 10 11 15 20 18 18 18 Average Carried 14 | 1 4 10 10 12 17 18 18 17 Final Capacity 20 | 8 15 15 15 15 20 20 20 20 Final Carried 18 | 2 10 10 11 15 18 18 18 16 Class Distribution -------------------- 53% | Mutant 33% | Hacker-Mutant 13% | Scavenger-Mutant Dominant Class ---------------- Mutant | -10/Materials Mutant | -10/Mines Mutant | -10/Exiles Mutant | -9/Mines Mutant | -8/Materials Hacker-Mutant | -8/Garrison Hacker-Mutant | -8/Materials Scavenger-Mutant | -8/Garrison Resources | -11 -10 -10 -10 -9 -8 -8 -8 -8 ----------- Run | Jun Mat Min Exi Min Mat Gar Mat Gar Matter Collected 1760 | 239 224 . 69 136 662 330 58 42 Remotely . | . . . . . . . . . Salvage Created 2387 | . 368 . . 173 1213 451 58 124 Parts 137 | . 37 . . 10 62 23 4 1 Haulers Intercepted 2 | . . . . . 2 . . . Recyclers Shooed . | . . . . . . . . . Parts Field Recycled . | . . . . . . . . . Retrieved Matter . | . . . . . . . . . Parts Self-Destructed . | . . . . . . . . . Prevented . | . . . . . . . . . Kills | -11 -10 -10 -10 -9 -8 -8 -8 -8 ------- Run | Jun Mat Min Exi Min Mat Gar Mat Gar Combat Hostiles Destroyed 63 | . 10 . . 5 26 18 1 3 Guns 51 | . 10 . . 5 21 11 1 3 AOE 12 | . . . . . 5 7 . . Classes Destroyed 7 | . 3 . . . 3 1 . . Hauler 2 | . . . . . 2 . . . Operator 6 | . 4 . . . 2 . . . Swarmer 15 | . 3 . . 2 3 7 . . Grunt 33 | . 7 . . 3 15 7 . 1 Duelist 3 | . . . . . 1 1 . 1 Sentry 10 | . . . . . 7 2 1 . Hunter 2 | . . . . . . 1 . 1 Best Kill Streak 6 | . 4 . . 3 6 4 1 2 Combat Bots Only 4 | . 4 . . 3 4 4 1 2 Max Kills in Single Turn 4 | . 1 . . 1 3 4 1 1 Gunslinging . | . . . . . . . . . Exploded 4 | . . . . . 3 4 . . Melee . | . . . . . . . . . Uniques/NPCs Destroyed . | . . . . . . . . . Combat | -11 -10 -10 -10 -9 -8 -8 -8 -8 -------- Run | Jun Mat Min Exi Min Mat Gar Mat Gar Damage Taken 3483 | . 363 . . 120 1679 638 145 538 Core 643 | . 74 . . 6 275 75 17 196 Absorbed by Shields 21 | . . . . . . 21 . . Redirected to Shielding 101 | . . . . . 27 39 20 15 Regen/Repaired (Parts) 248 | . . . . . 248 . . . Core Remaining (%) 84 | 100 . . . 68 . . . . Volleys Fired 191 | . 40 . . 9 77 48 2 15 Largest 2 | . 2 . . 2 2 2 2 2 Hottest 160 | . 70 . . 70 160 160 46 160 Shots Fired 352 | . 78 . . 18 152 74 4 26 Gun 325 | . 78 . . 18 150 53 4 22 Cannon . | . . . . . . . . . Launcher 27 | . . . . . 2 21 . 4 Special . | . . . . . . . . . Kinetic 198 | . 75 . . 9 87 15 4 8 Thermal 118 | . 3 . . 9 54 38 . 14 Explosive 27 | . . . . . 2 21 . 4 Electromagnetic 9 | . . . . . 9 . . . Robot Hit Streak 23 | . 11 . . 14 23 18 5 16 Robot Miss Streak 4 | . 3 . . 2 4 3 . 2 Penetration Max . | . . . . . . . . . Secondary Targets 6 | . 3 . . . 2 . . 1 Max Gunslinging Chain 1 | . 1 . . . 1 . . 1 Shots Hit Robots 254 | . 48 . . 15 122 45 4 20 Core Hits 174 | . 26 . . 9 86 41 2 10 Critical Kills 1 | . 1 . . . . . . . Critical Parts Destroyed . | . . . . . . . . . Critical Strikes 3 | . 2 . . 1 . . . . Burn 2 | . 1 . . 1 . . . . Destroy 1 | . 1 . . . . . . . Melee Attacks . | . . . . . . . . . Impact . | . . . . . . . . . Slashing . | . . . . . . . . . Piercing . | . . . . . . . . . Sneak Attacks . | . . . . . . . . . Combat Hostiles . | . . . . . . . . . Follow-up Attacks . | . . . . . . . . . Damage Inflicted 4992 | . 613 . . 198 2457 1334 50 340 Guns 4136 | . 601 . . 198 2137 810 50 340 Cannons . | . . . . . . . . . Explosions 844 | . . . . . 320 524 . . Melee . | . . . . . . . . . Ramming 12 | . 12 . . . . . . . Kinetic 1826 | . 576 . . 101 884 131 50 84 Thermal 2213 | . 25 . . 97 1156 679 . 256 Explosive 844 | . . . . . 320 524 . . Electromagnetic 97 | . . . . . 97 . . . Impact . | . . . . . . . . . Slashing . | . . . . . . . . . Piercing . | . . . . . . . . . Highest Corruption . | . . . . . . . . . Average Corruption . | . . . . . . . . . Corruption Purged . | . . . . . . . . . Corruption Blocked . | . . . . . . . . . Overload Shots . | . . . . . . . . . Overflow Damage 16 | . . . . . . 16 . . Projectiles . | . . . . . . . . . Explosions 16 | . . . . . . 16 . . Melee . | . . . . . . . . . Knockbacks . | . . . . . . . . . Impact . | . . . . . . . . . Kinetic . | . . . . . . . . . Secondary . | . . . . . . . . . Self-Inflicted Damage 58 | . . . . . 49 . . 9 Shots 2 | . . . . . 1 . . 1 Rammed 3 | . 3 . . . . . . . Targets Rammed 3 | . 3 . . . . . . . Kicked . | . . . . . . . . . Crushed . | . . . . . . . . . Highest Temperature 408 | . 20 . . 84 155 408 . 202 Average Temperature 84 | . 8 . . 32 60 123 . 116 Received Heat Transfer 1515 | . 174 . . 54 855 216 45 171 Effects 5 | . . . . . . 5 . . Shutdowns 1 | . . . . . . 1 . . Interference 3 | . . . . . . 3 . . Damage (minor) 1 | . . . . . . 1 . . Siege Activations . | . . . . . . . . . Robots Corrupted . | . . . . . . . . . Combat Hostiles . | . . . . . . . . . Parts Fried . | . . . . . . . . . Impact Corruptions . | . . . . . . . . . Robots Melted . | . . . . . . . . . Combat Hostiles . | . . . . . . . . . Parts Melted 12 | . 1 . . . 9 1 . 1 Heat Transferred 4949 | . 148 . . 370 2520 1336 . 575 Parts Sabotaged . | . . . . . . . . . Parts Stolen . | . . . . . . . . . Parts Stripped . | . . . . . . . . . Power Chain Reactions . | . . . . . . . . . Missiles Intercepted . | . . . . . . . . . Alert | -11 -10 -10 -10 -9 -8 -8 -8 -8 ------- Run | Jun Mat Min Exi Min Mat Gar Mat Gar Peak Influence 1214 | . 221 9 . 135 357 1214 646 543 Initial 591 | . . 9 . . . 232 591 419 Average 263 | . 72 9 . 73 141 664 614 481 Maximum Alert Level 4 | . 1 . . . 1 4 2 2 Low Security (%) 56 | 100 95 100 . 100 66 . . . Level 1 19 | . 4 . . . 33 22 . . Level 2 11 | . . . . . . 20 100 100 Level 3 12 | . . . . . . 55 . . Level 4 . | . . . . . . 1 . . Level 5 . | . . . . . . . . . High Security . | . . . . . . . . . Max Security . | . . . . . . . . . Squads Dispatched 6 | . 3 . . . 2 . 1 . Investigation 1 | . 1 . . . . . . . Extermination . | . . . . . . . . . Reinforcement 5 | . 2 . . . 2 . 1 . Assault . | . . . . . . . . . Garrison . | . . . . . . . . . Intercept . | . . . . . . . . . Searches Triggered . | . . . . . . . . . Construction Impeded . | . . . . . . . . . Haulers Reinforced . | . . . . . . . . . Active Scanning Responses . | . . . . . . . . . Cargo Convoy Interrupts . | . . . . . . . . . Stealth | -11 -10 -10 -10 -9 -8 -8 -8 -8 --------- Run | Jun Mat Min Exi Min Mat Gar Mat Gar Distress Signals 7 | . 2 . . . 4 . 1 . Communications Jammed . | . . . . . . . . . Distress Signals . | . . . . . . . . . Times Spotted 99 | . 22 . . 5 43 19 6 4 Peak Tracking Total 4 | . 4 . . 3 4 3 4 3 Tactical Retreats 3 | . . . . . . 3 . . Traps | -11 -10 -10 -10 -9 -8 -8 -8 -8 ------- Run | Jun Mat Min Exi Min Mat Gar Mat Gar Traps Triggered 8 | . . . . . 1 5 . 2 Indirectly . | . . . . . . . . . Trap Hack Attempts . | . . . . . . . . . Triggered . | . . . . . . . . . Disarmed . | . . . . . . . . . Reprogrammed . | . . . . . . . . . Reused . | . . . . . . . . . Traps Extracted . | . . . . . . . . . Installed . | . . . . . . . . . Triggered . | . . . . . . . . . Machines | -11 -10 -10 -10 -9 -8 -8 -8 -8 ---------- Run | Jun Mat Min Exi Min Mat Gar Mat Gar Machines Disabled 11 | . . . . . 2 8 . 1 Max in Single Turn 2 | . . . . . 2 2 . 1 Garrison Relay 5 | . . . . . . 4 . 1 Machines Repaired . | . . . . . . . . . Machines Sabotaged . | . . . . . . . . . Overloaded Fab Kills . | . . . . . . . . . Hacking | -11 -10 -10 -10 -9 -8 -8 -8 -8 --------- Run | Jun Mat Min Exi Min Mat Gar Mat Gar Machines Accessed 18 | . 6 . 1 . 7 2 2 . Terminals 12 | . 5 . . . 4 2 1 . Fabricators . | . . . . . . . . . Repair Stations 1 | . . . . . 1 . . . Recycling Units 1 | . 1 . . . . . . . Scanalyzers 1 | . . . . . 1 . . . Garrison Access 2 | . . . . . 1 . 1 . Total Hacks 49 | . 17 . 1 . 21 6 4 . Successful 28 | . 6 . 1 . 17 2 2 . Failed 21 | . 11 . . . 4 4 2 . Catastrophic 7 | . 4 . . . 2 . 1 . Database Lockouts . | . . . . . . . . . Manual 25 | . 15 . . . 8 1 1 . Terminals 33 | . 16 . . . 8 6 3 . Fabricators . | . . . . . . . . . Repair Stations 8 | . . . . . 8 . . . Recycling Units 1 | . 1 . . . . . . . Scanalyzers 4 | . . . . . 4 . . . Garrison Access 2 | . . . . . 1 . 1 . Terminal Hacks 7 | . 2 . 1 . 2 2 . . Record 1 | . . . 1 . . . . . Robot Schematic 1 | . . . . . 1 . . . Emergency Access Points 1 | . . . . . . 1 . . Garrison Index 1 | . . . . . 1 . . . Zone Layout 2 | . 2 . . . . . . . Garrison Registry 1 | . . . . . . 1 . . Fabricator Hacks . | . . . . . . . . . Repair Station Hacks 8 | . . . . . 8 . . . Scan Component 4 | . . . . . 4 . . . Repair 4 | . . . . . 4 . . . Recycling Unit Hacks . | . . . . . . . . . Scanalyzer 4 | . . . . . 4 . . . Insert Component 1 | . . . . . 1 . . . Analyze 3 | . . . . . 3 . . . Garrison Access Hacks 2 | . . . . . 1 . 1 . Unlock Access 2 | . . . . . 1 . 1 . Unauthorized Hacks 7 | . 4 . . . 2 . 1 . Terminals 6 | . 3 . . . 2 . 1 . Assimilate 2 | . 2 . . . . . . . Botnet 3 | . . . . . 2 . 1 . Operators 1 | . 1 . . . . . . . Fabricators . | . . . . . . . . . Repair Stations . | . . . . . . . . . Recycling Units 1 | . 1 . . . . . . . Tunnel 1 | . 1 . . . . . . . Scanalyzers . | . . . . . . . . . Garrison Access . | . . . . . . . . . Data Cores Recovered 1 | . 1 . . . . . . . Used . | . . . . . . . . . Hacking Detections 13 | . 5 . . . 4 2 2 . Full Trace Events . | . . . . . . . . . Feedback Events . | . . . . . . . . . Feedback Blocked . | . . . . . . . . . Robot Schematics Acquired 1 | . . . . . 1 . . . Robots Built . | . . . . . . . . . Authchips . | . . . . . . . . . Time . | . . . . . . . . . Total Robot Build Rating . | . . . . . . . . . Part Schematics Acquired 1 | . . . . . 1 . . . Parts Built . | . . . . . . . . . Authchips . | . . . . . . . . . Time . | . . . . . . . . . Total Part Build Rating . | . . . . . . . . . Parts Repaired 4 | . . . . . 4 . . . Time 158 | . . . . . 158 . . . Parts Recycled . | . . . . . . . . . Recycled Matter . | . . . . . . . . . Retrieved Matter . | . . . . . . . . . Retrieved Components . | . . . . . . . . . Parts Scanalyzed 1 | . . . . . 1 . . . Part Schematics Acquired 1 | . . . . . 1 . . . Parts Damaged . | . . . . . . . . . Bothacking | -11 -10 -10 -10 -9 -8 -8 -8 -8 ------------ Run | Jun Mat Min Exi Min Mat Gar Mat Gar Used RIF Installer . | . . . . . . . . . Robots Hacked . | . . . . . . . . . Non-combat . | . . . . . . . . . Combat . | . . . . . . . . . Robot Hacks Applied . | . . . . . . . . . Relay Couplers Released 19 | . . . . . . 14 . 5 Machine Destruction 19 | . . . . . . 14 . 5 Fabnet Peak Effective % . | . . . . . . . . . Robots Rewired . | . . . . . . . . . Allies Hacked . | . . . . . . . . . Hacks Repelled . | . . . . . . . . . Allies | -11 -10 -10 -10 -9 -8 -8 -8 -8 -------- Run | Jun Mat Min Exi Min Mat Gar Mat Gar Total Allies 2 | . 1 . . 1 . . . . Largest Group 1 | . 1 . . 1 1 . . . Highest-Rated Group 31 | . 10 . . 31 31 . . . Highest-Rated Ally 31 | . 10 . . 31 31 . . . Total Orders . | . . . . . . . . . Ally Attacks 6 | . . . . . 6 . . . Total Damage 83 | . . . . . 83 . . . Kills 1 | . . . . . 1 . . . Allies Corrupted . | . . . . . . . . . Allies Melted . | . . . . . . . . . Intel | -11 -10 -10 -10 -9 -8 -8 -8 -8 ------- Run | Jun Mat Min Exi Min Mat Gar Mat Gar Robot Analysis Total . | . . . . . . . . . Derelict Logs Recovered 1 | . . . . 1 . . . . Drone Launches . | . . . . . . . . . Drone Recoveries . | . . . . . . . . . Exploration | -11 -10 -10 -10 -9 -8 -8 -8 -8 ------------- Run | Jun Mat Min Exi Min Mat Gar Mat Gar Turns Passed 5722 | 86 964 63 254 515 2232 1206 150 252 Spaces Moved 2291 | 50 491 40 159 291 684 453 42 81 Core 5 | 5 . . . . . . . . Treads 2286 | 45 491 40 159 291 684 453 42 81 Legs . | . . . . . . . . . Wheels . | . . . . . . . . . Hover . | . . . . . . . . . Flight . | . . . . . . . . . Fastest Speed 50 | 50 160 160 160 160 160 225 225 240 Average Speed 194 | 151 160 160 160 160 220 225 230 240 Slowest Speed 320 | 160 160 160 160 160 320 225 240 240 Overloaded Moves . | . . . . . . . . . Propulsion Burnouts . | . . . . . . . . . Robots Hopped . | . . . . . . . . . Cave-ins Triggered . | . . . . . . . . . Exploration Rate (%) 40 | 4 81 12 54 73 50 58 6 23 Regions Visited 8 Branch Regions 3 Pre-discovered Areas 3 | . 1 . 1 1 . . . . Known Exits Taken 2 | . . . . . 1 . 1 . Unknown Exits Taken 5 | 1 1 1 1 1 . . . . Scrap Searched 2 | . . . . 2 . . . . Spaces Dug 33 | . . . . . 7 26 . . Terrain Destroyed 158 | . . . . . 14 117 . 27 Melee . | . . . . . . . . . Projectile . | . . . . . . . . . AOE 158 | . . . . . 14 117 . 27 Terrain Rammed . | . . . . . . . . . Walls Destroyed . | . . . . . . . . . Machines Disabled . | . . . . . . . . . Actions | -11 -10 -10 -10 -9 -8 -8 -8 -8 --------- Run | Jun Mat Min Exi Min Mat Gar Mat Gar Total 3162 | 57 589 39 159 323 1251 548 89 107 Wait 511 | . 43 . . 15 391 23 38 1 Move 2285 | 49 490 39 158 290 684 452 42 81 Hop . | . . . . . . . . . Pick Up 40 | 1 6 . 1 3 29 . . . Fast Attach 29 | 6 3 . . 1 15 1 3 . Attach 7 | . . . . . 5 . . 2 Detach 1 | . 1 . . . . . . . Swap 44 | 1 1 . . 3 19 14 2 4 Drop 38 | . 2 . . 2 31 1 2 . Fire 191 | . 40 . . 9 77 48 2 15 Melee . | . . . . . . . . . Ram . | . . . . . . . . . Kick . | . . . . . . . . . Crush 3 | . 3 . . . . . . . Escape Stasis 13 | . . . . . . 9 . 4 Rewire . | . . . . . . . . . Trap . | . . . . . . . . . Miscellaneous . | . . . . . . . . . Route ------- -11/Junkyard -10/Materials (discovered 4 exits: [*Mat x2] / [*Min x2]) -10/Mines -10/Exiles -9/Mines (discovered 2 exits: *Mat x2) -8/Materials (discovered 2 exits: [*Fac] / Gar) -8/Garrison (discovered 3 exits: *Mat x3) -8/Materials -8/Garrison History --------- Turn | Location | Event 13 | -11/Junkyard | Discovered new exit (range 14) 87 | -11/Junkyard | Entered Materials 256 | -10/Materials | Discovered new exit (range 11) 316 | -10/Materials | Build established: Mutant 612 | -10/Materials | Discovered new exit (range 9) 845 | -10/Materials | Discovered new exit (range 6) 961 | -10/Materials | Discovered new exit (range 11) 1051 | -10/Materials | Entered Mines 1107 | -10/Mines | Deemed a non-threat by the Exiles lab entrance 1107 | -10/Mines | Discovered new exit (range 5) 1114 | -10/Mines | Entered Exiles 1154 | -10/Exiles | Met 8R-AWN 1182 | -10/Exiles | Met EX-HEX 1261 | -10/Exiles | Met EX-DEC 1290 | -10/Exiles | Learned location of Zion (-7) 1349 | -10/Exiles | Discovered new exit (range 14) 1368 | -10/Exiles | Entered Mines 1605 | -9/Mines | Escorted by a lone wolf Derelict 1778 | -9/Mines | Discovered new exit (range 7) 1816 | -9/Mines | Discovered new exit (range 7) 1824 | -9/Mines | Joined a pair of Derelicts in attacking an 0b10 outpost 1883 | -9/Mines | Entered Materials 1883 | -8/Materials | Accompanied by 1 ally 1883 | -8/Materials | Evolved 4 slots: Utility x4 2462 | -8/Materials | Build established: Scavenger-Mutant 2911 | -8/Materials | Build established: Mutant 3708 | -8/Materials | Discovered new exit (range 10) 3784 | -8/Materials | Repaired Adv. Treads 3824 | -8/Materials | Repaired Adv. Treads 3845 | -8/Materials | Build established: Hacker-Mutant 3869 | -8/Materials | Repaired Gatling Laser 3908 | -8/Materials | Repaired Missile Launcher 4115 | -8/Materials | Identified exit to Garrison 4115 | -8/Materials | Entered Garrison 4207 | -8/Garrison | Core integrity fell below 50% 4379 | -8/Garrison | Triggered checkpoint 4466 | -8/Garrison | Triggered checkpoint 4509 | -8/Garrison | Garrison Relay disabled 4724 | -8/Garrison | Discovered new exit (range 10) 4739 | -8/Garrison | Discovered new exit (range 90) 4739 | -8/Garrison | Discovered new exit (range 59) 4739 | -8/Garrison | Discovered new exit (range 8) 4917 | -8/Garrison | Garrison Relay disabled 5009 | -8/Garrison | Triggered checkpoint 5128 | -8/Garrison | Garrison Relay disabled 5266 | -8/Garrison | Triggered checkpoint 5321 | -8/Garrison | Entered Materials 5471 | -8/Materials | Identified exit to Garrison 5471 | -8/Materials | Entered Garrison 5577 | -8/Garrison | Garrison Relay disabled 5698 | -8/Garrison | Triggered checkpoint 5712 | -8/Garrison | Core integrity fell below 20% 5723 | -8/Garrison | Destroyed by G-47 Trooper with Particle Gun Last Messages --------------- 05655_ Penetrated by Slug. 05668_ The unstable cave ceiling collapses. 05670_ Penetrated by Slug. 05670_ Targeting Computer melted. 05670_ H-55 Commando destroyed. 05681_ Acquired 42 matter. 05698_ Beams of light sweep through the air. An alarm sounds. 05700_ C-30 ARC bursts open, deploying its payload. 05700_ L-31 Rogue unfolds itself. 05700_ G-47 Trooper unfolds itself. 05705_ Lgt. Nuclear Core destroyed. 05709_ Imp. Utility Shielding destroyed. 05710_ Destroyed Melee Analysis Suite. 05711_ Gatling Laser destroyed. 05711_ Lgt. Treads destroyed. 05713_ Critical hit (Burn: +37). 05713_ Lgt. Treads destroyed. 05715_ L-31 Rogue destroyed. 05720_ G-47 Trooper destroyed. 05720_ Switching to secondary target: G-47 Trooper. Map ----- +----------------------------------------------------+ | ?????????????????????????????????????????????????? | | ?????????????????????????????????????????????????? | | ?????????????????????????????????????????????????? | | ?????????????????????????????????????????????????? | | ?????????????????????????????????????????????????? | | ?????????????????????????????????????????????????? | | ?????????????????????????????????????????????????? | | ?????????????????????????????????????????????????? | | ?????????????????????????????????????????????????? | | ?????????????????????????????????????????????????? | | ?????????????????????????????????????????????????? | | ??????????????????????????####???????????????????? | | ?????????????????????????? ??? ???????????????? | | ?????????????????????????? ?? ??????????????? | | ?????????????????????????? ?? ?????????????? | | ?????????????????????????? #? #?????????????? | | ?????????????????????????? ## #?????????????? | | ?????????????????????????" ??????????????? | | ?????????????????????????" ???? ?????????? | | ?????????????????????????" ??? ??????????? | | ?????????????????????????" ??? ????????????? | | ?????????????????????????# #?? #?????????????? | | ???????????????########### ## ## #????????? | | ???????????????# g #????????? | | ???????????????# [ % #????????? | | ?????????????#?# @% % #????????? | | ????????????## # ############ #?????????????? | | ????????????# # #?????# #????????????????????? | | ?????????# ## ####### #????????????????????? | | ?????????# #????????????????????? | | ???????#!! #### ####????????????????????? | | ???????# ! ### #??# #???????????????????????? | | ???????# # #??# #???????????????????????? | | ???????# # # #??# #???????????????????????? | | ???????#?# # ?# ##??# #???????????????????????? | | ?????????# #??# #???# #???????????????????????? | | ?????????# #??#^ #???# #???????????????????????? | | ?????????# #??# #???# #???????????????????????? | | ?????????" #??# #???# #???????????????????????? | | ?????????" #??# #???# #???????????????????????? | | ?????????" #??# #???# #???????????????????????? | | ?????????# #??# #???# #???????????????????????? | | ?????????# #### #???# #???????????????????????? | | ?????????# #??? #???????????????????????? | | ?????????# #???##????????????????????????? | | ?????????####### #?????????????????????????????? | | ???????????????# #?????????????????????????????? | | ???????????????# #?????????????????????????????? | | ???????????????# #?????????????????????????????? | | ???????????????# #?????????????????????????????? | +----------------------------------------------------+ Best States ------------- Heat Dissipation 60 Energy Generation 16 Energy Capacity 290 Matter Stores 300 Matter Capacity 300 Sight Range 16 Terrain Scan Density 10 Armor Coverage 150 Utility Shielding 66 Evasion (%) 40 Targeting Accuracy 8 Recoil Reduction 2 Offensive Hacking 20 Item Schematics ----------------- Imp. VTOL Module | -8/Materials | Scanalyzed Robot Schematics ------------------ M-28 Smith | -8/Materials | Hacked Fabricated ------------ Nothing Alien Tech Used ----------------- None Achievements -------------- None Challenges ------------ None Game ------ Seed AssemblyRocketDissipator Manual? 0 Play Time 00:36:51 Cumulative 505.3 hours Start 2023.05.21 @ 15:32:02 End 2023.05.21 @ 18:27:27 Sessions 3 Manual Loads 0 Difficulty Rogue Special Mode None Game No. 537 Rogue 528 Adventurer 8 Explorer 1 Win Type - Total 10 Types 5/2/3/0/0/0/0/0/0 Lore% 82 Gallery% 91 Achievement% 71 Wizard Run 0 Options --------- ASCII 0 Keyboard 0 Movement Numpad Keybinds 1 Fullscreen 2 Font 18/Terminus Map View 76x50 Tactical HUD 1 Map Filters NONE Filters NONE Steam 1 RUN: 866d7cdd-3228-4653-8125-851cc96a6c02